[Event "Marshall CC Premier 04-2025"]
[Site "New York"]
[Date "2025.04.06"]
[Round "3.9"]
[White "Yu, Vincent Zhiwen"]
[Black "Schaefer, Sasha Milo"]
[Result "0-1"]
[Annotator "RC"]
[ECO "B12"]
[WhiteElo "1885"]
[BlackElo "2050"]
[PlyCount "74"]
[EventDate "2025.01.03"]
[EventType "swiss"]
[EventCountry "USA"]
[SourceTitle "playchess.com"]
[Source "ChessBase"]
[SourceQuality "1"]
[TimeControl "5400+30"]

1. e4 {[%emt 0:00:02]} c6 {[%emt 0:00:02]} 2. d4 {[%emt 0:00:07]} d5 {[%emt 0:00:02]} 3. e5 {[%emt 0:00:06]} c5 {[%emt 0:00:02]} 4. c3 {[%emt 0:00:09]} Nc6 {[%emt 0:00:04]} 5. Be2 {[%emt 0:00:06]} cxd4 {[%emt 0:00:21]} 6. cxd4 {[%emt 0:00:07]} Bf5 {[%emt 0:00:29]} 7. Nf3 {[%emt 0:00:11]} e6 {[%emt 0:00:13]} 8. O-O {[%emt 0:00:14]} Nge7 {[%emt 0:00:12]} 9. Nc3 {[%emt 0:00:50]} Bg4 {[%emt 0:00:38]} 10. Nh4 {[%emt 0:01:36]} Bxe2 {[%emt 0:00:45]} 11. Nxe2 {[%emt 0:00:01]} Ng6 {[%emt 0:00:14]} 12. Nf3 {[%emt 0:00:20]} Be7 {[%emt 0:01:01]} 13. Be3 {[%emt 0:01:19]} O-O {[%emt 0:00:30]} 14. Rc1 {[%emt 0:00:46]} Rc8 {[%emt 0:00:34]} 15. Qd2 {[%emt 0:00:47]} Qd7 {[%emt 0:01:10]} 16. Rfd1 {[%emt 0:02:42]} Rfd8 {[%emt 0:00:19]} 17. Nf4 {[%emt 0:01:31]} Nxf4 {[%emt 0:05:40]} 18. Bxf4 {[%emt 0:00:04]} b6 {[%emt 0:00:22]} 19. Bg5 {[%emt 0:05:28]} f6 {[%emt 0:09:49]} 20. exf6 {[%emt 0:00:39]} gxf6 {[%emt 0:00:05]} 21. Bh4 {[%emt 0:04:29]} Rf8 {[%emt 0:06:47]} 22. Qh6 {[%emt 0:03:19]} Rf7 {[%emt 0:02:19]} 23. Rc3 {[%emt 0:03:01]} Bf8 {[%emt 0:00:45]} 24. Qh5 {[%emt 0:00:54]} Ne7 {[%emt 0:06:26]} 25. Re1 {[%emt 0:04:08]} Rxc3 {[%emt 0:07:55]} 26. bxc3 {[%emt 0:00:01]} Nf5 {[%emt 0:00:29]} 27. Qg4+ {[%emt 0:01:30]} Ng7 {[%emt 0:00:25]} 28. Qf4 {[%emt 0:03:27]} Bd6 {[%emt 0:04:50]} 29. Qe3 {[%emt 0:01:45]} Qa4 {[%emt 0:02:47]} 30. Qd2 {[%emt 0:01:37]} b5 {[%emt 0:04:08]} 31. g4 {[%emt 0:04:49]} Qc4 {[%emt 0:05:35]} 32. g5 {[%emt 0:02:33]} fxg5 {[%emt 0:01:25]} 33. Nxg5 {[%emt 0:00:56]} Bf4 {[%emt 0:00:27]} 34. Qb2 {[%emt 0:00:41]} Rf6 {[%emt 0:09:57]} 35. Nf3 {[%emt 0:02:10]} Rf5 {[%emt 0:01:14]} 36. Kg2 {[%emt 0:05:37]} Qd3 {[%emt 0:03:39]} 37. Bg3 {[%emt 0:03:57]} Qxf3+ {[%emt 0:00:47]} 0-1

[Event "Marshall CC Premier 04-2025"]
[Site "New York"]
[Date "2025.04.06"]
[Round "3.10"]
[White "Saxena, Vihaan"]
[Black "Kurup, Siddharth"]
[Result "1/2-1/2"]
[Annotator "ChessBase"]
[ECO "A13"]
[WhiteElo "1913"]
[BlackElo "1965"]
[PlyCount "57"]
[EventDate "2025.01.03"]
[EventType "swiss"]
[EventCountry "USA"]
[SourceTitle "playchess.com"]
[Source "ChessBase"]
[SourceQuality "1"]
[TimeControl "5400+30"]

1. Nf3 {[%emt 0:00:32]} d5 {[%emt 0:00:10]} 2. e3 {[%emt 0:00:17]} e6 {[%emt 0:00:11]} 3. c4 {[%emt 0:00:21]} Nf6 {[%emt 0:00:12]} 4. Nc3 {[%emt 0:00:38]} Be7 {[%emt 0:00:19]} 5. b3 {[%emt 0:02:00]} O-O {[%emt 0:00:15]} 6. Bb2 {[%emt 0:00:17]} c5 {[%emt 0:00:15]} 7. cxd5 {[%emt 0:01:59]} exd5 {[%emt 0:00:13]} 8. d4 {[%emt 0:02:08]} Nc6 {[%emt 0:00:20]} 9. Be2 {[%emt 0:00:34]} Bg4 {[%emt 0:00:28]} 10. O-O {[%emt 0:00:39]} Re8 {[%emt 0:01:10]} 11. Rc1 {[%emt 1:26:35]} Bxf3 {[%emt 0:11:09]} 12. Bxf3 {[%emt 0:00:00]} cxd4 {[%emt 0:00:31]} 13. exd4 {[%emt 0:00:00]} Rc8 {[%emt 0:01:12]} 14. Re1 {[%emt 0:00:00]} Qd7 {[%emt 0:02:51]} 15. Qd3 {[%emt 0:00:00]} Bd6 {[%emt 0:03:43]} 16. g3 {[%emt 0:00:00]} Bb8 {[%emt 0:03:36]} 17. Kg2 {[%emt 0:00:00]} h6 {[%emt 0:01:37]} 18. Rxe8+ {[%emt 0:00:00]} Rxe8 {[%emt 0:00:16]} 19. a3 {[%emt 0:00:00]} g6 {[%emt 0:13:45]} 20. Qb5 {[%emt 0:00:00]} Nxd4 {[%emt 0:12:00]} 21. Qxd7 {[%emt 0:00:00]} Nxd7 {[%emt 0:00:05]} 22. Bxd5 {[%emt 0:00:00]} Nb6 {[%emt 0:00:48]} 23. Rd1 {[%emt 0:00:00]} Be5 {[%emt 0:02:54]} 24. Re1 {[%emt 0:00:00]} Kf8 {[%emt 0:03:54]} 25. Bxb7 {[%emt 0:00:00]} Nxb3 {[%emt 0:01:34]} 26. Bc6 {[%emt 0:00:00]} Rc8 {[%emt 0:01:07]} 27. Rxe5 {[%emt 0:00:00]} Rxc6 {[%emt 0:00:24]} 28. Re2 {[%emt 0:00:00]} Nc4 {[%emt 0:01:52]} 29. Nd5 {[%emt 0:00:00]} 1/2-1/2